Workbook

Sheet Blad1
C3: kromme loop | G3: 0
C5: biberende handjes | G5: 0
N12: normale verdeling
B13: X-coord | C13: Y-coord | E13: X-coord | F13: Y-coord | N13: horizontaal | Q13: verticaal
D14: gemidd | E14: =AVERAGE($B$14:$B$2334) ->  | F14: =AVERAGE($C$14:$C$2334) ->  | I14: i | J14: X coord | K14: Y coord | N14: X-coord | P14: Y-coord | R14: X-coord | S14: Y-coord
D15: stdev | E15: =STDEV($B$14:$B$2334) ->  | F15: =STDEV($C$14:$C$2334) ->  | N15: =E19-$E$20/2 -> -10.5 | O15: =NORMDIST(N15,$E$14,$E$15,0) ->  | P15: =O15/MAX($O$15:$O$225)*MAX($F$23:$F$43) ->  | Q15: =NORMDIST(N15,$F$14,$F$15,0) ->  | R15: =Q15/MAX($Q$15:$Q$1225)*MAX($G$23:$G$43) ->  | S15: =N15*(-1) -> 10.5
D16: aantal | E16: =COUNT($B$14:$B$2334) -> 0 | F16: =COUNT($C$14:$C$2334) -> 0 | N16: =N15+$E$20/10 -> -10.4 | O16: =NORMDIST(N16,$E$14,$E$15,0) ->  | P16: =O16/MAX($O$15:$O$225)*MAX($F$23:$F$43) ->  | Q16: =NORMDIST(N16,$F$14,$F$15,0) ->  | R16: =Q16/MAX($Q$15:$Q$1225)*MAX($G$23:$G$43) ->  | S16: =N16*(-1) -> 10.4
D17: min | E17: =MIN($B$14:$B$2334) -> 0 | F17: =MIN($C$14:$C$2334) -> 0 | N17: =N16+$E$20/10 -> -10.3 | S17: 10.3
D18: max | E18: =MAX($B$14:$B$2334) -> 0 | F18: =MAX($C$14:$C$2334) -> 0 | N18: -10.2 | S18: 10.2
D19: stap | E19: -10 | N19: -10.1 | S19: 10.1
D20: step | E20: 1 | N20: -10 | S20: 10
D21: stop | E21: =MAX(D23:D43) -> 10 | N21: -9.9 | S21: 9.9
F22: hor | G22: vert | N22: -9.8 | S22: 9.8
D23: =$E$19 -> -10 | E23: =D23+$E$20/2 -> -9.5 | F23: =FREQUENCY($B$14:$B$2320,$E$23:$E$43) -> 0 | G23: =FREQUENCY($C$14:$C$2244,$E$23:$E$43) -> 0 | N23: -9.7 | S23: 9.7
D24: =D23+$E$20 -> -9 | E24: -8.5 | F24: 0 | G24: 0 | N24: -9.6 | S24: 9.6
D25: -8 | E25: -7.5 | F25: 0 | G25: 0 | N25: -9.5 | S25: 9.5
D26: -7 | E26: -6.5 | F26: 0 | G26: 0 | N26: -9.4 | S26: 9.4
D27: -6 | E27: -5.5 | F27: 0 | G27: 0 | N27: -9.3 | S27: 9.3
D28: -5 | E28: -4.5 | F28: 0 | G28: 0 | N28: -9.2 | S28: 9.2
D29: -4 | E29: -3.5 | F29: 0 | G29: 0 | N29: -9.1 | S29: 9.1
D30: -3 | E30: -2.5 | F30: 0 | G30: 0 | N30: -9 | S30: 9
D31: -2 | E31: -1.5 | F31: 0 | G31: 0 | N31: -8.9 | S31: 8.9
D32: -1 | E32: -0.5 | F32: 0 | G32: 0 | N32: -8.8 | S32: 8.8
D33: 0 | E33: 0.5 | F33: 0 | G33: 0 | N33: -8.7 | S33: 8.7
D34: 1 | E34: 1.5 | F34: 0 | G34: 0 | N34: -8.6 | S34: 8.6
D35: 2 | E35: 2.5 | F35: 0 | G35: 0 | N35: -8.5 | S35: 8.5
D36: 3 | E36: 3.5 | F36: 0 | G36: 0 | N36: -8.4 | S36: 8.4
D37: 4 | E37: 4.5 | F37: 0 | G37: 0 | N37: -8.3 | S37: 8.3
D38: 5 | E38: 5.5 | F38: 0 | G38: 0 | N38: -8.2 | S38: 8.2
D39: 6 | E39: 6.5 | F39: 0 | G39: 0 | N39: -8.1 | S39: 8.1
D40: 7 | E40: 7.5 | F40: 0 | G40: 0 | N40: -8 | S40: 8
D41: 8 | E41: 8.5 | F41: 0 | G41: 0 | N41: -7.9 | S41: 7.9
D42: 9 | E42: 9.5 | F42: 0 | G42: 0 | N42: -7.8 | S42: 7.8
D43: 10 | E43: 10.5 | F43: 0 | G43: 0 | N43: -7.7 | S43: 7.7
F44: 0 | G44: 0 | N44: -7.6 | S44: 7.6
N45: -7.5 | S45: 7.5
N46: -7.4 | S46: 7.4
N47: -7.3 | S47: 7.3
N48: -7.2 | S48: 7.2
N49: -7.1 | S49: 7.1
N50: -7 | S50: 7
N51: -6.9 | S51: 6.9
N52: -6.8 | S52: 6.8
N53: -6.7 | S53: 6.7
N54: -6.6 | S54: 6.6
N55: -6.5 | S55: 6.5
N56: -6.4 | S56: 6.4
N57: -6.3 | S57: 6.3
N58: -6.2 | S58: 6.2
N59: -6.1 | S59: 6.1
N60: -6 | S60: 6
N61: -5.9 | S61: 5.9
N62: -5.8 | S62: 5.8
N63: -5.7 | S63: 5.7
N64: -5.6 | S64: 5.6
N65: -5.5 | S65: 5.5
N66: -5.4 | S66: 5.4
N67: -5.3 | S67: 5.3
N68: -5.2 | S68: 5.2
N69: -5.1 | S69: 5.1
N70: -5 | S70: 5
N71: -4.9 | S71: 4.9
N72: -4.8 | S72: 4.8
N73: -4.7 | S73: 4.7
N74: -4.6 | S74: 4.6
N75: -4.5 | S75: 4.5
N76: -4.4 | S76: 4.4
N77: -4.3 | S77: 4.3
N78: -4.2 | S78: 4.2
N79: -4.1 | S79: 4.1
N80: -4 | O80: =NORMDIST(N80,$E$14,$E$15,0) ->  | P80: =O80/MAX($O$15:$O$225)*MAX($F$23:$F$43) ->  | Q80: =NORMDIST(N80,$F$14,$F$15,0) ->  | R80: =Q80/MAX($Q$15:$Q$1225)*MAX($G$23:$G$43) ->  | S80: =N80*(-1) -> 4
N81: =N80+$E$20/10 -> -3.9 | S81: 3.9
N82: -3.8 | S82: 3.8
N83: -3.7 | S83: 3.7
N84: -3.6 | S84: 3.6
N85: -3.5 | S85: 3.5
N86: -3.4 | S86: 3.4
N87: -3.3 | S87: 3.3
N88: -3.2 | S88: 3.2
N89: -3.1 | S89: 3.1
N90: -3 | S90: 3
N91: -2.9 | S91: 2.9
N92: -2.8 | S92: 2.8
N93: -2.7 | S93: 2.7
N94: -2.6 | S94: 2.6
N95: -2.5 | S95: 2.5
N96: -2.4 | S96: 2.4
N97: -2.3 | S97: 2.3
N98: -2.2 | S98: 2.2
N99: -2.1 | S99: 2.1
N100: -2 | S100: 2
N101: -1.9 | S101: 1.9
N102: -1.8 | S102: 1.8
N103: -1.7 | S103: 1.7
N104: -1.6 | S104: 1.6
N105: -1.5 | S105: 1.5
N106: -1.4 | S106: 1.4
N107: -1.3 | S107: 1.3
N108: -1.2 | S108: 1.2
N109: -1.1 | S109: 1.1
N110: -1 | S110: 1
N111: -0.9 | S111: 0.9
N112: -0.8 | S112: 0.8
N113: -0.7 | S113: 0.7
N114: -0.6 | S114: 0.6
N115: -0.5 | S115: 0.5
N116: -0.4 | S116: 0.4
N117: -0.3 | S117: 0.3
N118: -0.2 | S118: 0.2
N119: -0.1 | S119: 0.1
N120: -2.056688153e-14 | S120: 2.056688153e-14
N121: 0.1 | S121: -0.1
N122: 0.2 | S122: -0.2
N123: 0.3 | S123: -0.3
N124: 0.4 | S124: -0.4
N125: 0.5 | S125: -0.5
N126: 0.6 | S126: -0.6
N127: 0.7 | S127: -0.7
N128: 0.8 | S128: -0.8
N129: 0.9 | S129: -0.9
N130: 1 | S130: -1
N131: 1.1 | S131: -1.1
N132: 1.2 | S132: -1.2
N133: 1.3 | S133: -1.3
N134: 1.4 | S134: -1.4
N135: 1.5 | S135: -1.5
N136: 1.6 | S136: -1.6
N137: 1.7 | S137: -1.7
N138: 1.8 | S138: -1.8
N139: 1.9 | S139: -1.9
N140: 2 | S140: -2
N141: 2.1 | S141: -2.1
N142: 2.2 | S142: -2.2
N143: 2.3 | S143: -2.3
N144: 2.4 | O144: =NORMDIST(N144,$E$14,$E$15,0) ->  | P144: =O144/MAX($O$15:$O$225)*MAX($F$23:$F$43) ->  | Q144: =NORMDIST(N144,$F$14,$F$15,0) ->  | R144: =Q144/MAX($Q$15:$Q$1225)*MAX($G$23:$G$43) ->  | S144: =N144*(-1) -> -2.4
N145: =N144+$E$20/10 -> 2.5 | S145: -2.5
N146: 2.6 | S146: -2.6
N147: 2.7 | S147: -2.7
N148: 2.8 | S148: -2.8
N149: 2.9 | S149: -2.9
N150: 3 | S150: -3
N151: 3.1 | S151: -3.1
N152: 3.2 | S152: -3.2
N153: 3.3 | S153: -3.3
N154: 3.4 | S154: -3.4
N155: 3.5 | S155: -3.5
N156: 3.6 | S156: -3.6
N157: 3.7 | S157: -3.7
N158: 3.8 | S158: -3.8
N159: 3.9 | S159: -3.9
N160: 4 | S160: -4
N161: 4.1 | S161: -4.1
N162: 4.2 | S162: -4.2
N163: 4.3 | S163: -4.3
N164: 4.4 | S164: -4.4
N165: 4.5 | S165: -4.5
N166: 4.6 | S166: -4.6
N167: 4.7 | S167: -4.7
N168: 4.8 | S168: -4.8
N169: 4.9 | S169: -4.9
N170: 5 | S170: -5
N171: 5.1 | S171: -5.1
N172: 5.2 | S172: -5.2
N173: 5.3 | S173: -5.3
N174: 5.4 | S174: -5.4
N175: 5.5 | S175: -5.5
N176: 5.6 | S176: -5.6
N177: 5.7 | S177: -5.7
N178: 5.8 | S178: -5.8
N179: 5.9 | S179: -5.9
N180: 6 | S180: -6
N181: 6.1 | S181: -6.1
N182: 6.2 | S182: -6.2
N183: 6.3 | S183: -6.3
N184: 6.4 | S184: -6.4
N185: 6.5 | S185: -6.5
N186: 6.6 | S186: -6.6
N187: 6.7 | S187: -6.7
N188: 6.8 | S188: -6.8
N189: 6.9 | S189: -6.9
N190: 7 | S190: -7
N191: 7.1 | S191: -7.1
N192: 7.2 | S192: -7.2
N193: 7.3 | S193: -7.3
N194: 7.4 | S194: -7.4
N195: 7.5 | S195: -7.5
N196: 7.6 | S196: -7.6
N197: 7.7 | S197: -7.7
N198: 7.8 | S198: -7.8
N199: 7.9 | S199: -7.9
N200: 8 | S200: -8
N201: 8.1 | S201: -8.1
N202: 8.2 | S202: -8.2
N203: 8.3 | S203: -8.3
N204: 8.4 | S204: -8.4
N205: 8.5 | S205: -8.5
N206: 8.6 | S206: -8.6
N207: 8.7 | S207: -8.7
N208: 8.8 | O208: =NORMDIST(N208,$E$14,$E$15,0) ->  | P208: =O208/MAX($O$15:$O$225)*MAX($F$23:$F$43) ->  | Q208: =NORMDIST(N208,$F$14,$F$15,0) ->  | R208: =Q208/MAX($Q$15:$Q$1225)*MAX($G$23:$G$43) ->  | S208: =N208*(-1) -> -8.8
N209: =N208+$E$20/10 -> 8.9 | S209: -8.9
... 16 more rows
